Cogmind - Beta 13 @@@ ROGUE MODE // 2024.06.27 @ 12:16:44 Player: Jazzer Result: Destroyed by UM-85T(R) with Subdweller Laser Performance ------------- Evolutions (0) 0 Regions Visited (3) 600 Robots Destroyed (41) 205 Value Destroyed (890) 890 Prototype IDs (3) 60 Alien Tech Used (0) 0 Bonus (0) 0 TOTAL SCORE: 1755 Bonus ------- None Cogmind --------- Core Integrity 0/250 Matter 205/300 Energy 106/125 System Corruption 1% Temperature Cool (6) Movement Rolling (140) Ox4 Location -10/Subcaves Parts ------- > --- POWER (1) -------- Light Ion Engine > --- PROPULSION (2) --- Wheel Wheel > --- UTILITY (2) ------ Huge Storage Unit Subdweller Optics > --- WEAPON (2) ------- Subdweller Beam Cannon Subdweller Machine Gun > --- INVENTORY (25) --- Light Ion Engine Light Ion Engine Wheel Wheel Wheel Compact Wheel Compact Wheel Heat Sink Heat Sink Heat Sink Improved Heat Sink Improved Heat Sink Faulty Experimental Sensor Array Medium Laser Subdweller Laser Assault Rifle Assault Rifle Assault Rifle Light Assault Rifle Light Assault Rifle Hammer Peak State ------------ > --- POWER ------------ Light Nuclear Core > --- PROPULSION ------- Wheel Wheel > --- UTILITY ---------- Huge Storage Unit Targeting Computer > --- WEAPON ----------- Particle Gun Light Cannon > --- INVENTORY -------- Light Ion Engine Light Treads Light Treads Aluminum Leg Aluminum Leg Wheel Wheel Heat Sink Heat Sink Heat Sink Improved Heat Sink Improved Heat Sink Experimental Sensor Array Medium Laser Assault Rifle Assault Rifle Assault Rifle Light Assault Rifle Light Assault Rifle Hammer [Rating: 13] Favorites ----------- Power Light Ion Engine Engine Light Ion Engine Power Core Light Nuclear Core Propulsion Wheel Leg Aluminum Leg Wheel Wheel Utility Huge Storage Unit Device Heat Sink Storage Huge Storage Unit Processor Targeting Computer Weapon Particle Gun Energy Gun Particle Gun Energy Cannon Subdweller Beam Cannon Ballistic Gun Assault Rifle Ballistic Cannon Light Cannon Impact Weapon Hammer Build | -11 -10 -10 -10 ------- Run | Yrd Mat Min Sub Slots Evolved . | . . . . Power . | . . . . Propulsion . | . . . . Utility . | . . . . Weapon . | . . . . Parts Attached 27 | . 10 5 12 Power 3 | . 1 1 1 Engine 2 | . . 1 1 Core 1 | . 1 . . Reactor . | . . . . Propulsion 8 | . 3 2 3 Treads . | . . . . Leg . | . . . . Wheel 8 | . 3 2 3 Hover . | . . . . Flight . | . . . . Utility 4 | . 3 . 1 Device 2 | . 1 . 1 Storage 1 | . 1 . . Processor 1 | . 1 . . Hackware . | . . . . Protection . | . . . . Artifact . | . . . . Weapon 12 | . 3 2 7 Energy Gun 2 | . 1 1 . Energy Cannon 1 | . . . 1 Ballistic Gun 4 | . 1 . 3 Ballistic Cannon 2 | . 1 . 1 Launcher . | . . . . Special Weapon . | . . . . Impact Weapon 3 | . . 1 2 Slashing Weapon . | . . . . Piercing Weapon . | . . . . Special Melee Weapon . | . . . . Unidentified Prototypes . | . . . . Parts Lost 10 | . 1 2 7 Power 2 | . . 1 1 Propulsion 5 | . 1 1 3 Utility 1 | . . . 1 Weapon 2 | . . . 2 Highest Loss Streak 3 | . 1 1 3 To Critical Strikes 1 | . . . 1 Average Slot Usage (%) 96 | . 93 99 98 Engine 7 | . 2 9 13 Core 5 | . 11 3 . Wheel 26 | . 23 27 27 Device 2 | . 4 . 3 Storage 14 | . 14 14 14 Processor 10 | . 7 14 9 Energy Gun 10 | . 12 11 7 Ballistic Gun 7 | . 14 2 6 Ballistic Cannon 8 | . 1 14 6 Impact Weapon 1 | . . 1 3 Naked Turns . | . . . . Heaviest Build 97 | 11 91 91 97 Greatest Support 26 | 20 26 20 20 Greatest Overweight (x) 9 | . 9 8 9 Average Overweight (x) 4 | . 4 4 4 Largest Inventory Capacity 25 | . 25 25 25 Average Capacity 24 | . 24 25 25 Most Carried 24 | . 18 24 24 Average Carried 18 | . 13 20 23 Final Capacity 25 | 8 25 25 25 Final Carried 24 | 6 18 24 21 Class Distribution -------------------- 94% | Mutant 5% | Scavenger-Mutant Dominant Class ---------------- Mutant | -10/Materials Mutant | -10/Mines Mutant | -10/Subcaves Resources | -11 -10 -10 -10 ----------- Run | Yrd Mat Min Sub Matter Collected 790 | 200 291 229 70 Remotely . | . . . . Salvage Created 1249 | . 719 419 111 Parts 88 | . 39 37 12 Haulers Intercepted 2 | . 2 . . Recyclers Shooed 2 | . 2 . . Parts Field Recycled . | . . . . Retrieved Matter . | . . . . Parts Self-Destructed . | . . . . Prevented . | . . . . Kills | -11 -10 -10 -10 ------- Run | Yrd Mat Min Sub Combat Hostiles Destroyed 25 | . 11 10 4 Guns 12 | . 8 3 1 Cannons 13 | . 3 7 3 Classes Destroyed 10 | . 7 2 1 Worker 2 | . 1 1 . Builder 3 | . 2 1 . Tunneler 4 | . . 4 . Hauler 2 | . 2 . . Recycler 3 | . 2 1 . Watcher 3 | . 3 . . Swarmer 6 | . 3 3 . Grunt 14 | . 8 6 . Subdweller 4 | . . . 4 Assembled 1 | . . 1 . Best Kill Streak 4 | . 4 3 2 Combat Bots Only 3 | . 3 3 2 Max Kills in Single Turn 1 | . 1 1 1 Gunslinging . | . . . . Exploded . | . . . . Melee . | . . . . Uniques/NPCs Destroyed . | . . . . Combat | -11 -10 -10 -10 -------- Run | Yrd Mat Min Sub Hostile Shots Fired 100 | . 39 25 36 Missed 21 | . 6 7 8 Damage Taken 1159 | . 355 201 603 Core 252 | . 103 41 108 Absorbed by Shields . | . . . . Core Remaining (%) 100 | 100 . . . Volleys Fired 114 | . 62 37 15 Largest 2 | . 2 2 2 Hottest 110 | . 85 100 110 Shots Fired 231 | . 124 76 31 Gun 168 | . 114 38 16 Cannon 63 | . 10 38 15 Launcher . | . . . . Special . | . . . . Kinetic 140 | . 72 47 21 Thermal 91 | . 52 29 10 Explosive . | . . . . Electromagnetic . | . . . . Robot Hit Streak 12 | . 9 12 12 Robot Miss Streak 6 | . 6 2 1 Penetration Max . | . . . . Secondary Targets . | . . . . Shots Hit Robots 149 | . 78 46 25 Core Hits 63 | . 34 22 7 Critical Kills . | . . . . Critical Parts Destroyed . | . . . . Critical Strikes 4 | . 4 . . Burn 3 | . 3 . . Blast 1 | . 1 . . Melee Attacks 42 | . . 21 21 Impact 42 | . . 21 21 Slashing . | . . . . Piercing . | . . . . Sneak Attacks . | . . . . Combat Hostiles . | . . . . Follow-up Attacks . | . . . . Damage Inflicted 2279 | . 1049 787 443 Guns 1430 | . 906 371 153 Cannons 794 | . 143 416 235 Explosions . | . . . . Melee 55 | . . . 55 Ramming . | . . . . Kinetic 1318 | . 579 479 260 Thermal 906 | . 470 308 128 Explosive . | . . . . Electromagnetic . | . . . . Impact 55 | . . . 55 Slashing . | . . . . Piercing . | . . . . Highest Corruption 1 | . 1 1 1 Average Corruption 1 | . 1 1 1 Corruption Purged . | . . . . Corruption Blocked . | . . . . Effects 15 | . 1 8 6 Message Errors 2 | . . 1 1 Matter Fused 3 | . 1 1 1 Heat Flow Errors 3 | . . 1 2 Parts Rejected 1 | . . 1 . Data Loss (minor) 3 | . . 2 1 Misfires 3 | . . 2 1 Overload Shots . | . . . . Overflow Damage . | . . . . Projectiles . | . . . . Explosions . | . . . . Melee . | . . . . Knockbacks 6 | . 1 3 2 Impact 1 | . . . 1 Kinetic 5 | . 1 3 1 Secondary . | . . . . Self-Inflicted Damage . | . . . . Shots . | . . . . Rammed . | . . . . Targets Rammed . | . . . . Kicked . | . . . . Crushed . | . . . . Highest Temperature 213 | . 174 213 205 Average Temperature 61 | . 60 60 105 Received Heat Transfer 300 | . 144 63 93 Siege Activations . | . . . . Robots Corrupted . | . . . . Combat Hostiles . | . . . . Parts Fried . | . . . . Impact Corruptions . | . . . . Robots Melted . | . . . . Combat Hostiles . | . . . . Parts Melted 1 | . 1 . . Heat Transferred 2331 | . 1406 703 222 Parts Sabotaged . | . . . . Parts Stolen . | . . . . Parts Stripped . | . . . . Power Chain Reactions . | . . . . Alert | -11 -10 -10 -10 ------- Run | Yrd Mat Min Sub Peak Influence 202 | . 202 184 . Initial 39 | . . 39 . Average 67 | . 92 47 . Maximum Alert Level 1 | . 1 . . Low Security (%) 99 | . 99 100 . Level 1 . | . . . . Level 2 . | . . . . Level 3 . | . . . . Level 4 . | . . . . Level 5 . | . . . . High Security . | . . . . Max Security . | . . . . Squads Dispatched 2 | . 2 . . Investigation 2 | . 2 . . Extermination . | . . . . Reinforcement . | . . . . Assault . | . . . . Garrison . | . . . . Intercept . | . . . . Searches Triggered . | . . . . Construction Impeded . | . . . . Haulers Reinforced . | . . . . Active Scanning Responses . | . . . . Cargo Convoy Interrupts . | . . . . Stealth | -11 -10 -10 -10 --------- Run | Yrd Mat Min Sub Distress Signals . | . . . . Communications Jammed . | . . . . Distress Signals . | . . . . Times Spotted 39 | . 22 11 6 Peak Tracking Total 3 | . 3 3 3 Tactical Retreats 3 | . 2 1 . Traps | -11 -10 -10 -10 ------- Run | Yrd Mat Min Sub Traps Triggered 1 | . 1 . . Indirectly . | . . . . Trap Hack Attempts . | . . . . Triggered . | . . . . Disarmed . | . . . . Reprogrammed . | . . . . Reused . | . . . . Traps Extracted . | . . . . Installed . | . . . . Triggered . | . . . . Machines | -11 -10 -10 -10 ---------- Run | Yrd Mat Min Sub Machines Disabled 4 | . 4 . . Max in Single Turn 1 | . 1 . . Machines Repaired . | . . . . Machines Dismantled . | . . . . Machines Sabotaged . | . . . . Overloaded Fab Kills . | . . . . Hacking | -11 -10 -10 -10 --------- Run | Yrd Mat Min Sub Machines Accessed 9 | . 8 1 . Terminals 9 | . 8 1 . Fabricators . | . . . . Repair Stations . | . . . . Recycling Units . | . . . . Scanalyzers . | . . . . Garrison Access . | . . . . Total Hacks 38 | . 36 2 . Successful 18 | . 17 1 . Failed 20 | . 19 1 . Catastrophic . | . . . . Database Lockouts . | . . . . Manual 28 | . 26 2 . Terminals 38 | . 36 2 . Fabricators . | . . . . Repair Stations . | . . . . Recycling Units . | . . . . Scanalyzers . | . . . . Garrison Access . | . . . . Terminal Hacks 14 | . 13 1 . Robot Analysis 6 | . 6 . . Prototype ID Bank 2 | . 2 . . Unreport Threat 1 | . 1 . . Locate Traps 1 | . 1 . . Dispatch Records 1 | . . 1 . Hauler Manifests 1 | . 1 . . Registered Components 1 | . 1 . . Zone Layout 1 | . 1 . . Fabricator Hacks . | . . . . Repair Station Hacks . | . . . . Recycling Unit Hacks . | . . . . Scanalyzer . | . . . . Garrison Access Hacks . | . . . . Unauthorized Hacks 4 | . 4 . . Terminals 4 | . 4 . . Botnet 4 | . 4 . . Fabricators . | . . . . Repair Stations . | . . . . Recycling Units . | . . . . Scanalyzers . | . . . . Garrison Access . | . . . . Data Cores Recovered . | . . . . Used . | . . . . Hacking Detections 8 | . 8 . . Full Trace Events 1 | . 1 . . Feedback Events 1 | . 1 . . Corruption 1 | . 1 . . Feedback Blocked . | . . . . Robot Schematics Acquired . | . . . . Robots Built . | . . . . Authchips . | . . . . Time . | . . . . Total Robot Build Rating . | . . . . Part Schematics Acquired . | . . . . Parts Built . | . . . . Authchips . | . . . . Time . | . . . . Total Part Build Rating . | . . . . Parts Repaired . | . . . . Time . | . . . . Parts Recycled . | . . . . Recycled Matter . | . . . . Retrieved Matter . | . . . . Retrieved Components . | . . . . Parts Scanalyzed . | . . . . Part Schematics Acquired . | . . . . Parts Damaged . | . . . . Bothacking | -11 -10 -10 -10 ------------ Run | Yrd Mat Min Sub Used RIF Installer . | . . . . Robots Hacked . | . . . . Non-combat . | . . . . Combat . | . . . . Robot Hacks Applied . | . . . . Relay Couplers Released . | . . . . Fabnet Peak Effective % . | . . . . Robots Rewired . | . . . . Allies Hacked . | . . . . Hacks Repelled . | . . . . Allies | -11 -10 -10 -10 -------- Run | Yrd Mat Min Sub Total Allies . | . . . . Largest Group . | . . . . Highest-Rated Group . | . . . . Highest-Rated Ally . | . . . . Total Orders . | . . . . Ally Attacks . | . . . . Total Damage . | . . . . Kills . | . . . . Allies Corrupted . | . . . . Allies Melted . | . . . . Intel | -11 -10 -10 -10 ------- Run | Yrd Mat Min Sub Robot Analysis Total 6 | . 6 . . Derelict Logs Recovered 4 | . . 3 1 Drone Launches . | . . . . Drone Recoveries . | . . . . Exploration | -11 -10 -10 -10 ------------- Run | Yrd Mat Min Sub Turns Passed 2886 | . 1070 1265 551 Spaces Moved 1561 | 1 543 719 298 Core . | . . . . Treads . | . . . . Legs 21 | 1 20 . . Wheels 1540 | . 523 719 298 Hover . | . . . . Flight . | . . . . Fastest Speed 90 | 120 90 140 140 Average Speed 144 | 120 152 140 142 Slowest Speed 215 | 120 215 200 215 Overloaded Moves . | . . . . Propulsion Burnouts . | . . . . Robots Hopped . | . . . . Cave-ins Triggered . | . . . . Exploration Rate (%) 56 | 2 97 101 26 Regions Visited 3 Branch Regions 2 Pre-discovered Areas 1 | . . 1 . Known Exits Taken . | . . . . Unknown Exits Taken 3 | 1 1 1 . Scrap Searched 1 | . . 1 . Spaces Dug 5 | . . . 5 Terrain Destroyed 7 | . . . 7 Melee 5 | . . . 5 Projectile 2 | . . . 2 AOE . | . . . . Terrain Rammed . | . . . . Walls Destroyed . | . . . . Machines Disabled . | . . . . Actions | -11 -10 -10 -10 --------- Run | Yrd Mat Min Sub Total 1885 | . 663 865 357 Wait 110 | . 34 68 8 Move 1558 | . 542 718 298 Hop . | . . . . Pick Up 27 | . 12 12 3 Fast Attach 4 | . 2 1 1 Attach 9 | . 1 2 6 Detach 1 | . 1 . . Swap 14 | . 7 2 5 Drop 6 | . 2 4 . Fire 114 | . 62 37 15 Melee 42 | . . 21 21 Ram . | . . . . Kick . | . . . . Crush . | . . . . Escape Stasis . | . . . . Rewire . | . . . . Trap . | . . . . Miscellaneous . | . . . . Route ------- -11/Scrapyard -10/Materials (discovered 4 exits: [*Mat x3] / *Min) -10/Mines (discovered 3 exits: [*Mat x2] / [*Sub]) -10/Subcaves History --------- Turn | Location | Event 1 | -11/Scrapyard | Discovered new exit (range 0) 1 | -11/Scrapyard | Entered Materials 318 | -10/Materials | Build established: Mutant 369 | -10/Materials | Discovered new exit (range 16) 555 | -10/Materials | Discovered new exit (range 10) 680 | -10/Materials | Discovered new exit (range 5) 999 | -10/Materials | Discovered new exit (range 10) 1071 | -10/Materials | Entered Mines 1083 | -10/Mines | Met a Derelict bent on vengeance 1097 | -10/Mines | Found a damaged Exp. Sensor Array with a note attached 1099 | -10/Mines | Found Prototype Device 1213 | -10/Mines | Excavation squad dispatched 1213 | -10/Mines | A large section of the Mines collapsed 1289 | -10/Mines | Learned Materials security intel 1406 | -10/Mines | Discovered new exit (range 14) 1418 | -10/Mines | Discovered new exit (range 11) 1800 | -10/Mines | Discovered new exit (range 9) 1984 | -10/Mines | Core integrity fell below 50% 2336 | -10/Mines | Entered Subcaves 2336 | -10/Subcaves | Learned location of 1 exit from Materials 2575 | -10/Subcaves | A swath of the cavern ceiling suddenly collapsed 2728 | -10/Subcaves | Core integrity fell below 20% 2752 | -10/Subcaves | Lost 3 parts (1n1u1w) 2830 | -10/Subcaves | A swath of the cavern ceiling suddenly collapsed 2868 | -10/Subcaves | A Subdweller sparked back to life 2868 | -10/Subcaves | A Subdweller sparked back to life 2868 | -10/Subcaves | A Subdweller sparked back to life 2887 | -10/Subcaves | Destroyed by UM-85T(R) with Subdweller Laser Last Messages --------------- 02720_ 82-EG8(R) affixes Scrap Shield Fragment to Scrap Shield. 02721_ Wheel destroyed. 02728_ 82-EG8(R) destroyed. 02729_ System corrupted: Matter fused (-9). 02733_ Acquired Sub. Laser. 02734_ Acquired 48 matter. 02738_ Acquired Sub. Optics. 02740_ Acquired 2 matter. 02757_ HUA